fUSD/lending_fUSD_20260207
["ID","MTS","AMOUNT","RATE_DAILY","PERIOD"]
[404696460,1770478280633,-200.0,0.00018,2]
[404696461,1770478280644,-617.001416,0.00018,2]
[404696462,1770478280656,-617.001416,0.00018,2]
[404696463,1770478280673,-617.001416,0.00018,2]
[404696464,1770478280690,-617.001416,0.00018,2]
[404696465,1770478280700,-617.001416,0.00018,2]
[404696466,1770478280710,-617.001416,0.00018,2]
[404696467,1770478280721,-617.001416,0.00018,2]
[404696468,1770478280731,-617.001416,0.00018,2]
[404696469,1770478280742,-617.001416,0.00018,2]
[404696470,1770478280762,-617.001408,0.00018,2]
[404696471,1770478280786,-1500.0,0.00018,2]
[404696472,1770478280798,-151.0,0.00018,2]
[404696473,1770478280809,-151.0,0.00018,2]
[404696474,1770478280820,-151.0,0.00018,2]
[404696475,1770478280831,-151.0,0.00018,2]
[404696476,1770478280843,-151.0,0.00018,2]
[404696477,1770478280853,-151.0,0.00018,2]
[404696478,1770478280864,-151.0,0.00018,2]
[404696479,1770478280875,-151.0,0.00018,2]
[404696480,1770478280886,-151.0,0.00018,2]
[404696481,1770478280896,-654.921522,0.00018,2]
[404696482,1770478280906,-183.542462,0.00018,2]
[404696483,1770478280916,-654.921522,0.00018,2]
[404696484,1770478280927,-654.921522,0.00018,2]
[404696485,1770478280936,-654.921522,0.00018,2]
[404696486,1770478280950,-654.921522,0.00018,2]
[404696487,1770478280960,-654.921522,0.00018,2]
[404696488,1770478280970,-654.921522,0.00018,2]
[404696489,1770478280984,-654.921522,0.00018,2]
[404696490,1770478280994,-654.921522,0.00018,2]
[404696491,1770478281010,-654.921522,0.00018,2]
[404696492,1770478281024,-654.921522,0.00018,2]
[404696493,1770478281035,-654.921522,0.00018,2]
[404696494,1770478281045,-654.921522,0.00018,2]
[404696495,1770478281055,-654.921522,0.00018,2]
[404696496,1770478281065,-654.921522,0.00018,2]
[404696497,1770478281075,-654.921522,0.00018,2]
[404696498,1770478281086,-654.921522,0.00018,2]
[404696499,1770478281096,-654.921522,0.00018,2]
[404696500,1770478281106,-654.921522,0.00018,2]
[404696501,1770478281115,-654.921522,0.00018,2]
[404696502,1770478281125,-559.65824977,0.00018,2]
[404696503,1770478281134,-151.0,0.00018,2]
[404696504,1770478281144,-500.0,0.00018027,2]
[404696505,1770478281154,-168.37,0.00018041,2]
[404696506,1770478281164,-447.91426758,0.00018082,2]
[404696507,1770478281174,-1458.0,0.00018131,2]
[404696508,1770478281188,-200.0,0.00018183,2]
[404696509,1770478281198,-611.0,0.000182,2]
[404696510,1770478281208,-990.0,0.000182,2]
[404696511,1770478281218,-311.0,0.000182,2]
[404696512,1770478281228,-206.0,0.000182,2]
[404696513,1770478281238,-1500.0,0.000182,2]
[404696514,1770478281248,-723.42,0.00018264,2]
[404696515,1770478281262,-166.66,0.00018302,2]
[404696516,1770478281272,-153.93537236,0.00018314,2]
[404696517,1770478281282,-193.98899012,0.00018314,2]
[404696518,1770478281291,-1458.0,0.00018317,2]
[404696519,1770478281301,-1458.0,0.00018321,2]
[404696520,1770478281311,-200.0,0.00018342,2]
[404696521,1770478281321,-201.93286099,0.00018351,2]
[404696522,1770478281331,-700.0,0.00018356,7]
[404696523,1770478281342,-500.0,0.00018356,7]
[404696524,1770478281351,-500.0,0.00018356,7]
[404696525,1770478281362,-253.01,0.00018388,2]
[404696526,1770478281372,-305.85808466,0.00018392,2]
[404696527,1770478281385,-300.0,0.00018392,2]
[404696528,1770478281395,-300.0,0.00018392,2]
[404696529,1770478281405,-5737.0,0.00018393,2]
[404696530,1770478281415,-1458.0,0.00018397,2]
[404696531,1770478281425,-154.35396912,0.00018398,2]
[404696532,1770478281435,-300.0,0.00018422,2]
[404696533,1770478281445,-5737.0,0.00018423,2]
[404696534,1770478281455,-1458.0,0.00018433,2]
[404696535,1770478281465,-1101.0,0.000185,3]
[404696536,1770478281475,-1458.0,0.00018558,2]
[404696537,1770478281485,-200.0,0.00018569,2]
[404696538,1770478281494,-150.0,0.0001863,2]
[404696539,1770478281507,-168.58,0.00018713,2]
[404696540,1770478281516,-1458.0,0.00018773,2]
[404696541,1770478281526,-1458.0,0.00018799,2]
[404696542,1770478281536,-1458.0,0.00018804,2]
[404696543,1770478281547,-5737.0,0.00018823,2]
[404696544,1770478281557,-1458.0,0.00018845,2]
[404696545,1770478281567,-168.58,0.00018868,2]
[404696546,1770478281582,-166.66,0.00018869,2]
[404696547,1770478281798,-346.92554585,0.00018897,2]
[404696548,1770478281809,-599.60298507,0.00018898,2]
[404696549,1770478281820,-747.8093786,0.00018898,2]
[404696550,1770478281831,-209.40437684,0.00018899,2]
[404696551,1770478281842,-600.0,0.000189,3]
[404696552,1770478281852,-766.15370913,0.000189,3]
[404696553,1770478281863,-1000.0,0.00018913,2]
[404696554,1770478281873,-300.0,0.00018999,2]
[404696555,1770478281884,-300.0,0.00018999,2]
[404696556,1770478281894,-160.0,0.00019,2]
[404696557,1770478281904,-4766.38119825,0.00019,2]
[404696558,1770478281913,-295.01554549,0.00019,2]
[404696559,1770478281923,-203.48798592,0.00019,2]
[404696560,1770478281933,-507.0,0.00019,2]
[404696561,1770478281942,-358.89679747,0.0001901,7]
[404696562,1770478281953,-1458.0,0.00019023,2]
[404696563,1770478281965,-168.58,0.00019023,2]
[404696564,1770478281975,-201.08,0.00019054,2]
[404696565,1770478281984,-1458.0,0.00019091,2]
[404696566,1770478281997,-200.0,0.00019147,2]
[404696567,1770478282007,-1000.0,0.00019151,2]
[404696568,1770478282019,-161.34799176,0.00019166,2]
[404696569,1770478282029,-1458.0,0.00019171,2]
[404696570,1770478282038,-3000.0,0.00019178,2]
[404696571,1770478282047,-953.25704373,0.00019178,7]
[404696572,1770478282058,-151.0,0.00019178,2]
[404696573,1770478282068,-151.0,0.00019178,2]
[404696574,1770478282078,-155.704663,0.00019178,2]
[404696575,1770478282088,-194.60001,0.00019178,2]
[404696576,1770478282107,-151.0,0.00019178,2]
[404696577,1770478282119,-151.0,0.00019178,2]
[404696578,1770478282130,-151.0,0.00019178,2]
[404696579,1770478282140,-151.0,0.00019178,2]
[404696580,1770478282151,-151.0,0.00019178,2]
[404696581,1770478282162,-151.0,0.00019178,2]
[404696582,1770478282173,-151.0,0.00019178,2]
[404696583,1770478282183,-151.0,0.00019178,2]
[404696584,1770478282194,-151.0,0.00019178,2]
[404696585,1770478282207,-151.0,0.00019178,2]
[404696586,1770478282217,-151.0,0.00019178,2]
[404696587,1770478282227,-257.800168,0.00019178,2]
[404696588,1770478282237,-250.0,0.00019178,2]
[404696589,1770478282247,-150.71004244,0.00019178,2]
[404696590,1770478282257,-150.0,0.00019178,2]
[404696591,1770478282268,-1458.0,0.00019178,2]
[404696592,1770478282278,-200.0,0.00019184,2]
[404696593,1770478282288,-1000.0,0.00019187,2]
[404696594,1770478282299,-1458.0,0.00019202,2]
[404696595,1770478282309,-1458.0,0.00019222,2]
[404696596,1770478282319,-151.0,0.00019233,2]
[404696597,1770478282329,-1458.0,0.00019246,2]
[404696598,1770478282339,-1458.0,0.00019271,2]
[404696599,1770478282349,-151.0,0.00019288,2]
[404696600,1770478282359,-1000.0,0.00019302,2]
[404696601,1770478282369,-1458.0,0.00019312,2]
[404696603,1770478282378,-151.0,0.00019343,2]
[404696604,1770478282388,-151.0,0.00019398,2]
[404696605,1770478282399,-1458.0,0.0001943,2]
[404696606,1770478282409,-166.66,0.00019436,2]
[404696607,1770478282419,-217.15233878,0.00019447,2]
[404696608,1770478282429,-700.0,0.00019452,7]
[404696610,1770478282439,-500.0,0.00019452,7]
[404696611,1770478282449,-277.40566697,0.00019453,2]
[404696613,1770478282459,-1000.0,0.00019461,2]
[404696614,1770478282469,-152.0,0.000195,6]
[404696615,1770478282478,-200.0,0.00019649,2]
[404696616,1770478282489,-287.66363463,0.00019726,2]
[404696617,1770478282504,-250.0,0.00019726,2]
[404696618,1770478282514,-1000.0,0.00019729,2]
[404696619,1770478282523,-1000.0,0.00019735,2]
[404696620,1770478282533,-200.0,0.00019761,2]
[404696621,1770478282544,-1600.0,0.00019809,2]
[404696622,1770478282554,-255.87821251,0.00019863,2]
[404696623,1770478282565,-300.0,0.00019949,2]
[404696624,1770478282576,-300.0,0.00019949,2]
[404696625,1770478282586,-9034.01385302,0.0001995,15]
[404696626,1770478282595,-400.0,0.0001997,2]
[404696627,1770478282605,-400.0,0.0001997,2]
[404696628,1770478282614,-550.0,0.0001997,2]
[404696629,1770478282624,-400.0,0.0001997,2]
[404696630,1770478282633,-382.53579138,0.00019994,2]
[404696631,1770478282643,-225.18697532,0.00019995,2]
[404696632,1770478282658,-313.5829559,0.00019999,2]
[404696633,1770478282669,-590.56,0.0002,10]
[404696634,1770478282679,-1469.08036722,0.0002,5]
[404696635,1770478282689,-87074.70451518,0.0002,4]
[404696636,1770478282700,-2941.02849921,0.0002,7]
[404696637,1770478282710,-529.88277863,0.0002,7]
[404696638,1770478282721,-1877.90736582,0.0002,14]
[404696639,1770478282731,-2618.58359404,0.0002,7]
[404696640,1770478282741,-500.399907,0.0002,2]
[404696641,1770478282751,-150.0,0.0002,2]
[404696642,1770478282767,-150.0,0.0002,2]
[404696643,1770478282777,-150.0,0.0002,2]
[404696644,1770478282787,-150.0,0.0002,2]
[404696645,1770478282799,-150.35185704,0.0002,2]
[404696646,1770478282810,-150.0,0.0002,2]
[404696647,1770478282821,-150.0,0.0002,2]
[404696648,1770478282830,-150.0,0.0002,2]
[404696649,1770478282840,-150.0,0.0002,2]
[404696650,1770478282849,-245.30258564,0.0002,2]
[404696651,1770478282858,-150.0,0.0002,2]
[404696652,1770478282867,-150.0,0.0002,2]
[404696653,1770478282876,-150.0,0.0002,2]
[404696654,1770478282885,-150.0,0.0002,2]
[404696655,1770478282894,-150.0,0.0002,2]
[404696656,1770478282903,-150.0,0.0002,2]
[404696657,1770478282911,-150.0,0.0002,2]
[404696658,1770478282920,-150.20515273,0.0002,2]
[404696659,1770478282929,-272.3259299,0.0002,20]
[404696660,1770478282937,-200.0,0.0002,2]
[404696661,1770478282951,-1000.0,0.0002,7]
[404696662,1770478282960,-166.66,0.00020002,2]
[404696663,1770478282969,-1000.0,0.00020008,2]
[404696664,1770478282979,-150.0,0.00020023,2]
[404696665,1770478282990,-150.0,0.00020023,2]
[404696666,1770478282999,-150.0,0.00020023,2]
[404696667,1770478283012,-150.11586974,0.00020064,2]
[404696668,1770478283023,-245.30258564,0.00020244,2]
[404696669,1770478283033,-722.378,0.00020256,2]
[404696670,1770478283046,-3255.0,0.00020256,2]
[404696671,1770478283056,-2447.0,0.00020256,2]
[404696672,1770478283067,-359.76179104,0.00020266,2]
[404696673,1770478283077,-350.0,0.00020274,2]
[404696674,1770478283092,-1000.0,0.00020282,2]
[404696675,1770478283102,-16733.4152821,0.00020288,2]
[404696676,1770478283126,-46162.899707,0.00020288,2]
[404696677,1770478283137,-11445.7385031,0.00020288,2]
[404696678,1770478283147,-507.0,0.00020298,3]
[404696679,1770478283158,-150.0,0.00020299,2]
[404696680,1770478283167,-150.0,0.00020356,2]
[404696681,1770478283178,-150.0,0.00020356,2]
[404696682,1770478283188,-150.0,0.00020384,2]
[404696683,1770478283198,-150.0,0.00020417,2]
[404696684,1770478283208,-150.0,0.00020474,2]
[404696685,1770478283218,-674.020101,0.0002048,7]
[404696686,1770478283228,-150.0,0.00020482,2]
[404696687,1770478283238,-245.30258564,0.00020489,2]
[404696688,1770478283248,-233.51889341,0.00020543,2]
[404696689,1770478283261,-700.0,0.00020548,7]
[404696690,1770478283271,-500.0,0.00020548,7]
[404696691,1770478283282,-500.0,0.00020548,7]
[404696692,1770478283292,-1311.999559,0.00020552,2]
[404696693,1770478283303,-1000.0,0.00020556,2]
[404696694,1770478283312,-150.0,0.00020597,2]
[404696695,1770478283322,-150.0,0.00020712,2]
[404696696,1770478283332,-150.0,0.00020712,2]
[404696697,1770478283341,-245.30258564,0.00020733,2]
[404696698,1770478283350,-150.0,0.00020768,2]
[404696699,1770478283360,-2000.0,0.00020796,2]
[404696700,1770478283370,-2000.0,0.00020796,2]
[404696701,1770478283379,-494.49066866,0.00020822,2]
[404696702,1770478283390,-1000.0,0.0002083,2]
[404696703,1770478283400,-3733.7296317,0.00020832,2]
[404696704,1770478283410,-10300.3352045,0.00020832,2]
[404696705,1770478283419,-2553.8894652,0.00020832,2]
[404696706,1770478283429,-150.0,0.00020834,2]
[404696707,1770478283442,-400.0,0.0002087,2]
[404696708,1770478283453,-400.0,0.0002087,2]
[404696709,1770478283463,-300.0,0.0002087,2]
[404696710,1770478283474,-300.0,0.0002087,2]
[404696711,1770478283484,-150.0,0.00020896,2]
[404696712,1770478283494,-8853.90220877,0.000209,30]
[404696713,1770478283506,-150.0,0.000209,2]
[404696714,1770478283516,-150.0,0.00020949,2]
[404696715,1770478283526,-245.30258564,0.00020978,2]
[404696716,1770478283536,-160.0,0.00021,7]
[404696717,1770478283547,-151.0,0.00021,2]
[404696718,1770478283557,-19906.29787309,0.00021,2]
[404696719,1770478283566,-232.85529757,0.00021,2]
[404696720,1770478283577,-500.0,0.00021,2]
[404696721,1770478283587,-500.0,0.00021,2]
[404696722,1770478283597,-504.68637928,0.00021,10]
[404696723,1770478283607,-1000.0,0.00021023,2]
[404696724,1770478283617,-151.0,0.0002105,4]
[404696725,1770478283627,-152.0,0.0002105,4]
[404696726,1770478283637,-300.0,0.0002105,4]
[404696728,1770478283647,-151.0,0.0002105,4]
[404696729,1770478283656,-151.0,0.0002105,4]
[404696730,1770478283666,-270.0,0.0002105,4]
[404696731,1770478283676,-300.0,0.0002105,4]
[404696732,1770478283686,-300.0,0.0002105,4]
[404696733,1770478283696,-384.0,0.0002105,4]
[404696735,1770478283706,-300.0,0.0002105,4]
[404696736,1770478283716,-300.0,0.0002105,4]
[404696737,1770478283726,-300.0,0.0002105,4]
[404696738,1770478283736,-300.0,0.0002105,4]
[404696739,1770478283747,-150.0,0.0002106,4]
[404696740,1770478283940,-150.0,0.0002106,4]
[404696741,1770478283950,-150.0,0.00021061,4]
[404696742,1770478283965,-150.0,0.00021068,2]
[404696743,1770478283976,-150.0,0.00021068,2]
[404696744,1770478283987,-150.0,0.0002107,4]
[404696745,1770478283996,-150.0,0.0002107,4]
[404696746,1770478284007,-150.0,0.00021072,4]
[404696747,1770478284018,-150.0,0.00021072,4]
[404696748,1770478284027,-150.0,0.0002108,4]
[404696749,1770478284039,-150.0,0.0002108,4]
[404696750,1770478284049,-150.0,0.00021083,4]
[404696751,1770478284059,-150.0,0.0002109,4]
[404696752,1770478284069,-150.0,0.0002109,4]
[404696753,1770478284080,-242.15909246,0.00021091,2]
[404696754,1770478284089,-150.0,0.00021094,4]
[404696755,1770478284099,-150.0,0.00021094,4]
[404696756,1770478284130,-150.0,0.000211,4]
[404696757,1770478284139,-150.0,0.000211,4]
[404696758,1770478284149,-1000.0,0.00021104,2]
[404696759,1770478284158,-150.0,0.00021105,4]
[404696760,1770478284167,-150.0,0.00021105,4]
[404696761,1770478284178,-150.0,0.00021105,4]
[404696762,1770478284187,-150.0,0.00021105,4]
[404696763,1770478284197,-150.0,0.00021105,4]
[404696764,1770478284207,-150.0,0.00021105,4]
[404696765,1770478284217,-150.0,0.00021105,4]
[404696766,1770478284227,-150.0,0.00021105,4]
[404696767,1770478284237,-150.0,0.00021105,4]
[404696768,1770478284247,-150.0,0.0002111,4]
[404696769,1770478284259,-150.0,0.0002111,4]
[404696770,1770478284270,-1000.0,0.00021112,2]
[404696771,1770478284279,-150.0,0.00021116,4]
[404696772,1770478284289,-150.0,0.00021116,4]
[404696773,1770478284299,-150.0,0.0002112,4]
[404696774,1770478284309,-150.0,0.0002112,4]
[404696775,1770478284319,-402.0,0.00021123,2]
[404696776,1770478284330,-150.0,0.00021127,4]
[404696777,1770478284340,-150.0,0.0002113,4]
[404696778,1770478284350,-150.0,0.0002113,4]
[404696779,1770478284359,-150.0,0.00021138,4]
[404696780,1770478284369,-150.0,0.00021138,4]
[404696781,1770478284379,-150.0,0.0002114,4]
[404696782,1770478284388,-150.0,0.0002114,4]
[404696783,1770478284398,-150.0,0.00021149,4]
[404696784,1770478284408,-150.0,0.0002115,4]
[404696785,1770478284417,-150.0,0.0002115,4]
[404696786,1770478284426,-150.0,0.00021152,2]
[404696787,1770478284435,-292.7466717,0.00021155,2]
[404696788,1770478284445,-6943.0,0.0002116,4]
[404696789,1770478284455,-218.0,0.0002116,4]
[404696790,1770478284464,-952.0,0.0002116,4]
[404696791,1770478284474,-175.0,0.0002116,4]
[404696792,1770478284483,-166.0,0.0002116,4]
[404696793,1770478284492,-259.0,0.0002116,4]
[404696794,1770478284502,-150.0,0.00021186,4]
[404696795,1770478284513,-150.0,0.00021195,2]
[404696796,1770478284523,-245.30258564,0.00021222,2]
[404696797,1770478284532,-150.0,0.00021252,2]
[404696798,1770478284543,-1000.0,0.00021279,2]
[404696799,1770478284552,-1000.0,0.00021378,2]
[404696800,1770478284562,-1000.0,0.00021399,2]
[404696801,1770478284571,-152.0,0.0002142,7]
[404696802,1770478284581,-150.0,0.00021423,2]
[404696803,1770478284590,-150.0,0.00021423,2]
[404696804,1770478284600,-150.0,0.00021423,2]
[404696805,1770478284610,-150.0,0.00021423,2]
[404696806,1770478284620,-1000.0,0.00021455,2]
[404696807,1770478284631,-245.30258564,0.00021466,2]
[404696808,1770478284640,-1000.0,0.00021485,2]
[404696809,1770478284650,-150.0,0.00021494,2]
[404696810,1770478284661,-150.0,0.00021536,2]
[404696811,1770478284670,-1000.0,0.00021555,2]
[404696812,1770478284680,-507.0,0.00021596,4]
[404696813,1770478284689,-150.0,0.00021613,2]
[404696814,1770478284699,-1000.0,0.0002162,2]
[404696815,1770478284708,-373.07297731,0.00021635,2]
[404696816,1770478284718,-621.78829552,0.00021637,2]
[404696817,1770478284728,-775.47832561,0.00021637,2]
[404696818,1770478284738,-251.11897888,0.00021639,2]
[404696819,1770478284747,-700.0,0.00021644,7]
[404696820,1770478284757,-500.0,0.00021644,7]
[404696821,1770478284767,-1000.0,0.00021652,2]
[404696822,1770478284776,-150.0,0.00021669,2]
[404696823,1770478284785,-245.30258564,0.00021711,2]
[404696824,1770478284795,-1000.0,0.00021774,2]
[404696825,1770478284804,-150.0,0.00021779,2]
[404696826,1770478284814,-150.0,0.00021779,2]
[404696827,1770478284824,-1600.0,0.0002179,2]
[404696828,1770478284833,-150.0,0.00021792,2]
[404696829,1770478284843,-1000.0,0.00021795,2]
[404696830,1770478284852,-150.0,0.00021829,19]
[404696831,1770478284862,-150.0,0.00021898,2]
[404696832,1770478284871,-161.34799176,0.00021904,2]
[404696833,1770478284881,-5000.0,0.00021918,2]
[404696834,1770478284890,-151.0,0.00021918,2]
[404696835,1770478284900,-151.0,0.00021918,2]
[404696836,1770478284909,-151.0,0.00021918,2]
[404696837,1770478284918,-151.0,0.00021918,2]
[404696838,1770478284928,-268.681911,0.00021918,2]
[404696839,1770478284937,-800.0,0.00021918,2]
[404696840,1770478284947,-800.0,0.00021918,2]
[404696841,1770478284958,-800.0,0.00021918,2]
[404696842,1770478284968,-800.0,0.00021918,2]
[404696843,1770478284977,-800.0,0.00021918,2]
[404696844,1770478284987,-800.0,0.00021918,2]
[404696845,1770478284997,-396.17693118,0.00021918,2]
[404696846,1770478285006,-500.0,0.00021918,2]
[404696847,1770478285016,-150.0,0.0002192,2]
[404696848,1770478285025,-1000.0,0.00021926,2]
[404696849,1770478285037,-245.30258564,0.00021955,2]
[404696850,1770478285047,-500.0,0.00021973,2]
[404696851,1770478285056,-1000.0,0.00021974,2]
[404696852,1770478285066,-799.78215687,0.00022,7]
[404696853,1770478285075,-151.0,0.00022,2]
[404696855,1770478285085,-2000.0,0.00022,2]
[404696856,1770478285094,-200.0,0.00022,2]
[404696857,1770478285103,-200.0,0.00022,2]
[404696858,1770478285113,-200.0,0.00022,2]
[404696859,1770478285123,-150.0,0.00022001,21]
[404696860,1770478285132,-500.0,0.00022028,2]
[404696862,1770478285142,-489.40689815,0.00022082,2]
[404696863,1770478285152,-150.0,0.00022086,2]
[404696864,1770478285161,-150.0,0.00022091,2]
[404696865,1770478285171,-150.0,0.00022135,4]
[404696866,1770478285181,-150.0,0.00022135,4]
[404696867,1770478285190,-163.0,0.00022172,23]
[404696869,1770478285199,-261.0,0.00022172,23]
[404696870,1770478285209,-260.4103811,0.00022187,2]
[404696871,1770478285218,-245.30258564,0.000222,4]
[404696872,1770478285227,-1000.0,0.000222,2]
[404696873,1770478285237,-1287.64763618,0.0002222,2]
[404696874,1770478285246,-200.0,0.0002222,2]
[404696875,1770478285257,-200.0,0.0002222,2]
[404696876,1770478285265,-200.0,0.0002222,2]
[404696877,1770478285274,-359.74743456,0.00022222,30]
[404696878,1770478285283,-150.0,0.00022304,4]
[404696879,1770478285293,-150.0,0.00022372,4]
[404696880,1770478285302,-150.0,0.0002239,4]
[404696881,1770478285311,-200.0,0.00022442,2]
[404696882,1770478285321,-200.0,0.00022442,2]
[404696883,1770478285330,-200.0,0.00022442,2]
[404696884,1770478285340,-245.30258564,0.00022444,4]
[404696885,1770478285349,-1999.0,0.00022474,2]
[404696886,1770478285358,-150.0,0.00022491,4]
[404696887,1770478285368,-150.0,0.00022491,4]
[404696888,1770478285377,-150.0,0.00022503,4]
[404696889,1770478285386,-11961.47617925,0.000226,2]
[404696890,1770478285396,-165.75,0.00022603,2]
[404696891,1770478285405,-200.0,0.00022667,2]
[404696892,1770478285415,-200.0,0.00022667,2]
[404696893,1770478285424,-150.0,0.00022689,4]
[404696894,1770478285434,-150.0,0.00022689,4]
[404696895,1770478285443,-150.0,0.00022689,4]
[404696896,1770478285453,-245.30258564,0.00022689,4]
[404696897,1770478285462,-150.0,0.00022689,4]
[404696898,1770478285471,-270.0455652,0.00022735,2]
[404696899,1770478285482,-700.0,0.0002274,7]
[404696900,1770478285492,-500.0,0.0002274,7]
[404696901,1770478285502,-500.0,0.0002274,7]
[404696902,1770478285515,-150.0,0.00022847,4]
[404696903,1770478285526,-150.0,0.00022847,4]
[404696904,1770478285536,-150.0,0.00022847,4]
[404696905,1770478285545,-150.0,0.00022847,4]
[404696906,1770478285557,-200.0,0.00022893,2]
[404696907,1770478285566,-200.0,0.00022893,2]
[404696908,1770478285576,-507.0,0.00022894,5]
[404696909,1770478285585,-150.0,0.0002292,4]
[404696910,1770478285594,-245.30258564,0.00022933,4]
[404696911,1770478285604,-3498.45,0.00022966,2]
[404696912,1770478285614,-150.0,0.00022987,4]
[404696913,1770478285624,-637.42361999,0.00023,7]
[404696914,1770478285634,-163.0,0.00023,14]
[404696915,1770478285644,-160.0,0.00023,3]
[404696916,1770478285753,-160.0,0.00023,2]
[404696917,1770478285772,-386.87667747,0.00023004,2]
[404696918,1770478285783,-150.0,0.00023073,4]
[404696919,1770478285793,-180.712,0.000231,2]
[404696920,1770478285803,-245.30258564,0.00023177,4]
[404696921,1770478285814,-150.0,0.00023203,4]
[404696922,1770478285824,-150.0,0.00023203,4]
[404696923,1770478285835,-150.0,0.00023226,4]
[404696924,1770478285845,-3248.0,0.00023256,2]
[404696925,1770478285854,-2447.0,0.00023256,2]
[404696926,1770478285864,-8549.5305453,0.00023272,2]
[404696927,1770478285874,-5000.0,0.00023272,2]
[404696928,1770478285884,-343.59194898,0.00023283,2]
[404696929,1770478285893,-150.0,0.00023286,4]
[404696930,1770478285903,-1155.06,0.000233,14]
[404696931,1770478285913,-150.0,0.00023321,4]
[404696932,1770478285923,-150.0,0.00023338,4]
[404696933,1770478285932,-152.0,0.0002334,8]
[404696934,1770478285943,-276.67465214,0.0002334,5]
[404696935,1770478285956,-500.0,0.0002337,2]
[404696936,1770478285966,-1000.0,0.00023407,2]
[404696937,1770478285976,-245.30258564,0.00023422,4]
[404696938,1770478285986,-150.0,0.00023457,4]
[404696939,1770478285996,-5000.0,0.00023463,7]
[404696940,1770478286009,-327.0,0.00023517,10]
[404696941,1770478286018,-150.0,0.00023558,4]
[404696942,1770478286030,-150.0,0.00023558,4]
[404696943,1770478286040,-150.0,0.00023585,4]
[404696944,1770478286049,-245.30258564,0.00023666,4]
[404696945,1770478286059,-150.0,0.00023755,4]
[404696946,1770478286069,-1600.0,0.00023771,2]
[404696947,1770478286079,-150.0,0.00023796,4]
[404696948,1770478286088,-700.0,0.00023836,7]
[404696949,1770478286097,-150.0,0.00023841,4]
[404696950,1770478286107,-150.0,0.00023883,4]
[404696951,1770478286117,-245.30258564,0.00023911,4]
[404696952,1770478286126,-150.0,0.00023914,4]
[404696953,1770478286136,-150.0,0.00023914,4]
[404696954,1770478286146,-10001.49651385,0.00024,2]
[404696955,1770478286155,-160.0,0.00024,7]
[404696956,1770478286165,-60988.6237482,0.00024,2]
[404696957,1770478286176,-8811.46207964,0.00024006,120]
[404696958,1770478286186,-61700.96139872,0.00024006,120]
[404696959,1770478286195,-245.30258564,0.00024155,4]
[404696960,1770478286205,-150.0,0.00024172,4]
[404696961,1770478286215,-150.0,0.00024182,4]
[404696962,1770478286226,-507.0,0.00024191,6]
[404696963,1770478286236,-150.0,0.00024225,4]
[404696964,1770478286245,-150.0,0.0002427,4]
[404696965,1770478286255,-150.0,0.0002427,4]
[404696966,1770478286265,-150.0,0.0002427,4]
[404696967,1770478286275,-150.0,0.0002427,4]